fUSD/lending_fUSD_20240403
["ID","MTS","AMOUNT","RATE_DAILY","PERIOD"]
[321427894,1712182316816,-5284.66,0.00055342,120]
[321427895,1712182316825,-500.0,0.00055342,120]
[321427896,1712182316834,-1031.33,0.00055342,120]
[321427897,1712182316843,-6341.12,0.00055342,120]
[321427898,1712182316852,-634.4,0.00055342,120]
[321427899,1712182316861,-2231.2,0.00055342,120]
[321427900,1712182316870,-500.0,0.00055342,120]
[321427901,1712182316880,-1584.76,0.00055342,120]
[321427902,1712182316889,-500.0,0.00055342,120]
[321427903,1712182316898,-500.0,0.00055342,120]
[321427904,1712182316907,-773.21,0.00055342,120]
[321427905,1712182316916,-500.0,0.00055342,120]
[321427906,1712182316925,-500.0,0.00055342,120]
[321427907,1712182316934,-541.88,0.00055342,120]
[321427908,1712182316943,-590.98,0.00055342,120]
[321427909,1712182316952,-2029.16,0.00055342,120]
[321427910,1712182316961,-500.0,0.00055342,120]
[321427911,1712182316970,-639.31,0.00055342,120]
[321427912,1712182316979,-515.55700433,0.00055342,120]
[321427913,1712182316988,-292.44490227,0.00055342,120]
[321427914,1712182316997,-500.0,0.00055342,120]
[321427915,1712182317006,-502.84918275,0.00055342,120]
[321427916,1712182317015,-2905.31,0.00055342,120]
[321427917,1712182317025,-207.04849767,0.00055342,120]
[321427918,1712182317034,-500.0,0.00055342,120]
[321427919,1712182317043,-500.0,0.00055342,120]
[321427920,1712182317052,-519.36070872,0.00055342,120]
[321427921,1712182317062,-1182.15,0.00055342,120]
[321427922,1712182317071,-500.0,0.00055342,120]
[321427923,1712182317079,-500.0,0.00055342,120]
[321427924,1712182317089,-500.0,0.00055342,120]
[321427925,1712182317098,-500.0,0.00055342,120]
[321427926,1712182317107,-504.85,0.00055342,120]
[321427927,1712182317117,-1522.27,0.00055342,7]
[321427928,1712182317126,-514.83050403,0.00055342,120]
[321427929,1712182317135,-3000.0,0.00055342,120]
[321427930,1712182317144,-1565.32,0.00055342,120]
[321427931,1712182317153,-619.44,0.00055342,120]
[321427932,1712182317162,-500.0,0.00055342,120]
[321427933,1712182317171,-540.52679265,0.00055342,120]
[321427934,1712182317180,-2380.48,0.00055342,120]
[321427935,1712182317189,-1373.12,0.00055342,120]
[321427936,1712182317199,-1541.65,0.00055342,120]
[321427937,1712182317209,-563.41,0.00055342,120]
[321427938,1712182317217,-314.19147135,0.00055342,120]
[321427939,1712182317227,-500.0,0.00055342,120]
[321427940,1712182317236,-500.0,0.00055342,120]
[321427941,1712182317246,-500.0,0.00055342,120]
[321427942,1712182317256,-604.59,0.00055342,120]
[321427943,1712182317267,-500.0,0.00055342,120]
[321427944,1712182317276,-869.55,0.00055342,120]
[321427945,1712182317286,-504.46997931,0.00055342,120]
[321427946,1712182317298,-2515.17,0.00055342,120]
[321427947,1712182317307,-500.0,0.00055342,120]
[321427948,1712182317317,-1251.7,0.00055342,120]
[321427949,1712182317326,-500.0,0.00055342,120]
[321427950,1712182317335,-500.0,0.00055342,120]
[321427951,1712182317345,-500.0,0.00055342,120]
[321427952,1712182317354,-4948.94,0.00055342,120]
[321427953,1712182317363,-2810.56,0.00055342,120]
[321427954,1712182317373,-52357.43,0.00055342,120]
[321427955,1712182317383,-504.54,0.00055342,120]
[321427956,1712182317392,-786.26,0.00055342,120]
[321427957,1712182317401,-534.99,0.00055342,120]
[321427958,1712182317410,-500.0,0.00055342,120]
[321427959,1712182317419,-500.0,0.00055342,120]
[321427960,1712182317428,-479.0797639,0.00055342,120]
[321427961,1712182317437,-643.75,0.00055342,120]
[321427962,1712182317446,-2329.88,0.00055342,120]
[321427963,1712182317456,-1544.06,0.00055342,120]
[321427964,1712182317465,-500.0,0.00055342,120]
[321427965,1712182317474,-500.0,0.00055342,120]
[321427966,1712182317484,-500.0,0.00055342,120]
[321427967,1712182317494,-500.0,0.00055342,120]
[321427968,1712182317503,-8632.12,0.00055342,120]
[321427969,1712182317512,-4415.02,0.00055342,120]
[321427970,1712182317521,-550.87,0.00055342,120]
[321427971,1712182317530,-3139.95,0.00055342,120]
[321427972,1712182317539,-851.69,0.00055342,120]
[321427973,1712182317549,-500.0,0.00055342,120]
[321427974,1712182317558,-500.0,0.00055342,120]
[321427975,1712182317567,-1156.95,0.00055342,120]
[321427976,1712182317576,-500.0,0.00055342,120]
[321427977,1712182317585,-536.59222158,0.00055342,120]
[321427978,1712182317595,-600.06,0.00055342,120]
[321427979,1712182317607,-500.0,0.00055342,120]
[321427980,1712182317616,-727.71,0.00055342,120]
[321427981,1712182317625,-2830.73,0.00055342,120]
[321427982,1712182317635,-500.0,0.00055342,120]
[321427983,1712182317646,-4317.35,0.00055342,120]
[321427984,1712182317655,-500.0,0.00055342,120]
[321427985,1712182317665,-500.0,0.00055342,120]
[321427986,1712182317674,-5781.72,0.00055342,120]
[321427987,1712182317686,-1166.59,0.00055342,120]
[321427988,1712182317696,-1165.33,0.00055342,120]
[321427989,1712182317705,-3614.27,0.00055342,120]
[321427990,1712182317714,-500.0,0.00055342,120]
[321427991,1712182317723,-500.0,0.00055342,120]
[321427992,1712182317732,-601.62717731,0.00055342,120]
[321427993,1712182317741,-2671.64,0.00055342,120]
[321427994,1712182317750,-500.28,0.00055342,120]
[321427995,1712182317759,-500.0,0.00055342,120]
[321427996,1712182317769,-1853.14,0.00055342,120]
[321427997,1712182317778,-500.0,0.00055342,120]
[321427998,1712182317787,-1035.92,0.00055342,120]
[321427999,1712182317796,-2958.64,0.00055342,120]
[321428000,1712182317806,-500.0,0.00055342,120]
[321428001,1712182317815,-23235.85,0.00055342,120]
[321428002,1712182317824,-571.26,0.00055342,120]
[321428003,1712182317833,-500.0,0.00055342,120]
[321428004,1712182317843,-1218.61,0.00055342,120]
[321428005,1712182317852,-500.0,0.00055342,120]
[321428006,1712182317861,-500.0,0.00055342,120]
[321428007,1712182317871,-500.0,0.00055342,120]
[321428008,1712182317882,-13561.16,0.00055342,120]
[321428009,1712182317891,-1928.79,0.00055342,120]
[321428010,1712182317900,-500.0,0.00055342,120]
[321428011,1712182317909,-730.5,0.00055342,120]
[321428012,1712182317919,-500.0,0.00055342,120]
[321428013,1712182317928,-500.0,0.00055342,120]
[321428014,1712182317937,-500.0,0.00055342,120]
[321428015,1712182317947,-500.0,0.00055342,120]
[321428016,1712182317957,-4823.72,0.00055342,120]
[321428017,1712182317967,-528.54748635,0.00055342,120]
[321428018,1712182317978,-500.0,0.00055342,120]
[321428019,1712182317987,-500.0,0.00055342,120]
[321428020,1712182317996,-901.12,0.00055342,120]
[321428021,1712182318006,-1839.73,0.00055342,120]
[321428022,1712182318015,-1891.12,0.00055342,120]
[321428023,1712182318023,-1273.38,0.00055342,120]
[321428024,1712182318032,-500.0,0.00055342,120]
[321428025,1712182318041,-500.0,0.00055342,120]
[321428026,1712182318050,-500.0,0.00055342,120]
[321428027,1712182318059,-743.85,0.00055342,120]
[321428028,1712182318067,-1571.1,0.00055342,120]
[321428029,1712182318077,-500.0,0.00055342,120]
[321428030,1712182318086,-1166.4,0.00055342,120]
[321428031,1712182318095,-6476.21,0.00055342,120]
[321428032,1712182318104,-677.74,0.00055342,120]
[321428033,1712182318113,-2307.59,0.00055342,120]
[321428034,1712182318122,-384.69279635,0.00055342,120]
[321428035,1712182318132,-500.0,0.00055342,120]
[321428036,1712182318141,-4214.7,0.00055342,120]
[321428037,1712182318150,-500.0,0.00055342,120]
[321428038,1712182318159,-500.0,0.00055342,120]
[321428039,1712182318168,-1094.92,0.00055342,120]
[321428040,1712182318177,-2401.85,0.00055342,120]
[321428041,1712182318187,-621.9805786,0.00055342,120]
[321428042,1712182318196,-1624.59,0.00055342,120]
[321428043,1712182318206,-2341.82,0.00055342,120]
[321428044,1712182318215,-40194.92,0.00055342,120]
[321428045,1712182318224,-500.0,0.00055342,120]
[321428046,1712182318234,-500.0,0.00055342,120]
[321428047,1712182318243,-500.0,0.00055342,120]
[321428048,1712182318252,-1048.4,0.00055342,120]
[321428049,1712182318261,-18725.44,0.00055342,120]
[321428050,1712182318270,-3301.52,0.00055342,120]
[321428051,1712182318279,-3160.42,0.00055342,120]
[321428052,1712182318288,-2618.75,0.00055342,120]
[321428053,1712182318297,-1634.63,0.00055342,120]
[321428054,1712182318307,-515.45830104,0.00055342,120]
[321428055,1712182318317,-1278.33,0.00055342,120]
[321428056,1712182318326,-784.86,0.00055342,120]
[321428057,1712182318337,-500.0,0.00055342,120]
[321428058,1712182318347,-1519.81,0.00055342,120]
[321428059,1712182318356,-2073.31,0.00055342,120]
[321428060,1712182318366,-500.0,0.00055342,120]
[321428061,1712182318375,-942.86,0.00055342,120]
[321428062,1712182318384,-3687.58,0.00055342,120]
[321428063,1712182318393,-6016.54,0.00055342,120]
[321428064,1712182318403,-963.82,0.00055342,120]
[321428065,1712182318413,-4806.56,0.00055342,120]
[321428066,1712182318422,-500.0,0.00055342,120]
[321428067,1712182318431,-990.77,0.00055342,120]
[321428068,1712182318440,-1225.81,0.00055342,120]
[321428069,1712182318449,-1816.51,0.00055342,120]
[321428070,1712182318460,-500.0,0.00055342,120]
[321428071,1712182318469,-2998.67,0.00055342,120]
[321428072,1712182318478,-500.0,0.00055342,120]
[321428073,1712182318487,-528.3,0.00055342,120]
[321428074,1712182318496,-2368.29,0.00055342,120]
[321428075,1712182318505,-500.0,0.00055342,120]
[321428076,1712182318514,-7192.17,0.00055342,120]
[321428077,1712182318523,-7428.5,0.00055342,120]
[321428078,1712182318532,-2801.0,0.00055342,120]
[321428079,1712182318541,-2726.28,0.00055342,120]
[321428080,1712182318550,-844.09,0.00055342,120]
[321428081,1712182318559,-3041.57,0.00055342,120]
[321428082,1712182318568,-500.0,0.00055342,120]
[321428083,1712182318577,-500.0,0.00055342,120]
[321428084,1712182318587,-1269.01,0.00055342,120]
[321428085,1712182318596,-500.0,0.00055342,120]
[321428086,1712182318608,-18834.36,0.00055342,120]
[321428087,1712182318617,-1960.36,0.00055342,120]
[321428088,1712182318626,-1703.32,0.00055342,120]
[321428089,1712182318635,-518.33743695,0.00055342,120]
[321428090,1712182318644,-5651.64,0.00055342,120]
[321428091,1712182318654,-2587.56,0.00055342,120]
[321428092,1712182318664,-500.0,0.00055342,120]
[321428093,1712182318673,-500.0,0.00055342,120]
[321428094,1712182318684,-500.0,0.00055342,120]
[321428095,1712182318693,-500.0,0.00055342,120]
[321428096,1712182318702,-2690.54,0.00055342,120]
[321428097,1712182318712,-500.0,0.00055342,120]
[321428098,1712182318721,-500.0,0.00055342,120]
[321428099,1712182318731,-628.20453023,0.00055342,120]
[321428100,1712182318740,-314.63110081,0.00055342,120]
[321428101,1712182318749,-594.67,0.00055342,120]
[321428102,1712182318759,-500.0,0.00055342,120]
[321428103,1712182318768,-2018.37,0.00055342,120]
[321428104,1712182318778,-1828.14,0.00055342,21]
[321428105,1712182318788,-872.43,0.00055342,120]
[321428106,1712182318798,-513.61372717,0.00055342,120]
[321428107,1712182318807,-500.0,0.00055342,120]
[321428108,1712182318816,-764.66,0.00055342,120]
[321428109,1712182318825,-3764.89,0.00055342,120]
[321428110,1712182318834,-1385.21,0.00055342,120]
[321428111,1712182318842,-5728.88,0.00055342,120]
[321428112,1712182318851,-500.0,0.00055342,120]
[321428113,1712182318861,-2768.66,0.00055342,120]
[321428114,1712182318870,-1938.19,0.00055342,120]
[321428115,1712182318880,-500.0,0.00055342,120]
[321428116,1712182318889,-4469.47,0.00055342,120]
[321428117,1712182318899,-634.12,0.00055342,120]
[321428118,1712182318908,-731.15,0.00055342,120]
[321428119,1712182318917,-2123.24,0.00055342,120]
[321428120,1712182318925,-500.0,0.00055342,120]
[321428121,1712182318934,-500.0,0.00055342,120]
[321428122,1712182318942,-1719.33,0.00055342,7]
[321428123,1712182318952,-213.13476611,0.00055342,120]
[321428124,1712182318961,-500.0,0.00055342,120]
[321428125,1712182318970,-2253.41,0.00055342,120]
[321428126,1712182318979,-729.33,0.00055342,120]
[321428127,1712182318988,-2117.98,0.00055342,120]
[321428128,1712182318997,-8698.46,0.00055342,120]
[321428129,1712182319006,-500.0,0.00055342,120]
[321428130,1712182319015,-500.0,0.00055342,120]
[321428131,1712182319024,-4924.96,0.00055342,120]
[321428132,1712182319033,-1332.76,0.00055342,120]
[321428133,1712182319042,-500.0,0.00055342,120]
[321428134,1712182319052,-3756.46,0.00055342,120]
[321428135,1712182319061,-500.0,0.00055342,2]
[321428136,1712182319070,-500.0,0.00055342,120]
[321428137,1712182319079,-5000.0,0.00055342,120]
[321428138,1712182319088,-500.0,0.00055342,120]
[321428139,1712182319098,-1367.26,0.00055342,120]
[321428140,1712182319108,-1037.04,0.00055342,120]
[321428141,1712182319117,-500.0,0.00055342,120]
[321428142,1712182319126,-616.76,0.00055342,120]
[321428143,1712182319135,-3300.85,0.00055342,120]
[321428144,1712182319144,-500.0,0.00055342,120]
[321428145,1712182319153,-500.0,0.00055342,120]
[321428146,1712182319163,-779.43,0.00055342,120]
[321428147,1712182319172,-500.0,0.00055342,120]
[321428148,1712182319181,-1708.51,0.00055342,120]
[321428149,1712182319190,-1102.91,0.00055342,120]
[321428150,1712182319199,-4377.13,0.00055342,120]
[321428151,1712182319209,-1000.0,0.00055342,120]
[321428152,1712182319218,-500.0,0.00055342,120]
[321428153,1712182319227,-689.85,0.00055342,120]
[321428154,1712182319236,-500.0,0.00055342,120]
[321428155,1712182319246,-2700.2,0.00055342,120]
[321428156,1712182319255,-500.0,0.00055342,120]
[321428157,1712182319265,-2417.36,0.00055342,120]
[321428158,1712182319274,-500.0,0.00055342,120]
[321428159,1712182319284,-688.82,0.00055342,120]
[321428160,1712182319293,-7000.0,0.00055342,120]
[321428161,1712182319303,-4108.23,0.00055342,120]
[321428162,1712182319313,-871.93,0.00055342,120]
[321428163,1712182319322,-1759.09,0.00055342,120]
[321428164,1712182319331,-1221.88,0.00055342,120]
[321428165,1712182319340,-500.0,0.00055342,120]
[321428166,1712182319349,-500.0,0.00055342,120]
[321428167,1712182319359,-12173.89,0.00055342,120]
[321428168,1712182319369,-3860.65,0.00055342,120]
[321428169,1712182319379,-500.0,0.00055342,120]
[321428170,1712182319388,-664.94,0.00055342,120]
[321428171,1712182319397,-500.0,0.00055342,120]
[321428172,1712182319406,-2714.19,0.00055342,120]
[321428173,1712182319416,-500.0,0.00055342,120]
[321428174,1712182319426,-500.0,0.00055342,120]
[321428175,1712182319436,-3736.26,0.00055342,120]
[321428176,1712182319446,-500.0,0.00055342,120]
[321428177,1712182319456,-500.0,0.00055342,120]
[321428178,1712182319466,-5068.01,0.00055342,120]
[321428179,1712182319474,-500.0,0.00055342,120]
[321428180,1712182319484,-2396.76,0.00055342,120]
[321428181,1712182319494,-500.0,0.00055342,120]
[321428182,1712182319503,-3260.72,0.00055342,120]
[321428183,1712182319512,-3118.27,0.00055342,120]
[321428184,1712182319522,-1703.09,0.00055342,120]
[321428185,1712182319531,-1109.31,0.00055342,120]
[321428186,1712182319541,-230.91954058,0.00055342,120]
[321428187,1712182319551,-2615.01,0.00055342,120]
[321428188,1712182319560,-500.0,0.00055342,120]
[321428189,1712182319570,-500.0,0.00055342,120]
[321428190,1712182319580,-500.0,0.00055342,120]
[321428191,1712182319589,-2132.97,0.00055342,120]
[321428192,1712182319599,-2932.33,0.00055342,120]
[321428193,1712182319611,-500.0,0.00055342,120]
[321428194,1712182319620,-500.0,0.00055342,120]
[321428195,1712182319629,-514.06670516,0.00055342,120]
[321428196,1712182319638,-531.62405478,0.00055342,120]
[321428197,1712182319649,-3267.54,0.00055342,120]
[321428198,1712182319658,-500.0,0.00055342,2]
[321428199,1712182319668,-500.0,0.00055342,120]
[321428200,1712182319679,-2295.65,0.00055342,120]
[321428201,1712182319689,-4811.26,0.00055342,120]
[321428202,1712182319698,-569.97,0.00055342,120]
[321428203,1712182319708,-1121.83,0.00055342,120]
[321428204,1712182319717,-500.0,0.00055342,120]
[321428205,1712182319727,-5557.68,0.00055342,120]
[321428206,1712182319736,-960.97,0.00055342,120]
[321428207,1712182319746,-500.0,0.00055342,120]
[321428208,1712182319755,-2998.29,0.00055342,120]
[321428209,1712182319765,-1978.76,0.00055342,120]
[321428210,1712182319774,-4668.01,0.00055342,120]
[321428211,1712182319784,-3123.66,0.00055342,120]
[321428212,1712182319793,-2725.96,0.00055342,120]
[321428213,1712182319803,-1215.44,0.00055342,120]
[321428214,1712182319813,-500.0,0.00055342,120]
[321428215,1712182319822,-1020.9,0.00055342,120]
[321428216,1712182319831,-1754.37,0.00055342,120]
[321428217,1712182319841,-500.0,0.00055342,120]
[321428218,1712182319850,-8574.73,0.00055342,120]
[321428219,1712182319859,-500.0,0.00055342,120]
[321428220,1712182319869,-500.0,0.00055342,120]
[321428221,1712182319878,-500.0,0.00055342,2]
[321428222,1712182319888,-1714.24,0.00055342,120]
[321428223,1712182319897,-500.0,0.00055342,120]
[321428224,1712182319906,-2219.69,0.00055342,120]
[321428225,1712182319916,-984.67,0.00055342,120]
[321428226,1712182319925,-3615.88,0.00055342,120]
[321428227,1712182320055,-500.0,0.00055342,120]
[321428228,1712182320064,-500.0,0.00055342,120]
[321428229,1712182320074,-514.46,0.00055342,120]
[321428230,1712182320084,-500.0,0.00055342,120]
[321428231,1712182320093,-949.53,0.00055342,120]
[321428232,1712182320103,-200.0,0.00055377,120]
[321428233,1712182320113,-200.0,0.00055377,120]
[321428234,1712182320123,-200.0,0.00055377,120]
[321428235,1712182320132,-200.0,0.00055377,120]
[321428236,1712182320142,-200.0,0.00055377,120]
[321428237,1712182320153,-200.0,0.00055377,120]
[321428238,1712182320162,-200.0,0.00055377,120]
[321428239,1712182320172,-200.0,0.00055377,120]
[321428240,1712182320182,-200.0,0.00055377,120]
[321428241,1712182320191,-200.0,0.00055377,120]
[321428242,1712182320201,-1000.0,0.00055403,120]
[321428243,1712182320211,-500.0,0.00055479,120]
[321428244,1712182320220,-164.76891725,0.000555,120]
[321428245,1712182320230,-1072.0,0.000555,105]
[321428246,1712182320239,-150.0,0.0005553,120]
[321428247,1712182320248,-151.0,0.00055534,120]
[321428248,1712182320258,-1000.0,0.00055556,120]
[321428249,1712182320268,-1042.88,0.00055589,120]
[321428250,1712182320278,-150.0,0.00055609,120]
[321428251,1712182320287,-337.73168936,0.00055616,120]
[321428252,1712182320297,-500.0,0.00055616,120]
[321428253,1712182320308,-500.0,0.00055616,120]
[321428254,1712182320317,-518.34381203,0.00055616,120]
[321428255,1712182320327,-500.0,0.00055616,120]
[321428256,1712182320336,-500.0,0.00055616,120]
[321428257,1712182320345,-735.78,0.00055616,120]
[321428258,1712182320355,-791.38,0.00055616,120]
[321428259,1712182320364,-512.32618187,0.00055616,120]
[321428260,1712182320373,-973.42,0.00055616,120]
[321428261,1712182320383,-503.29863314,0.00055616,2]
[321428262,1712182320392,-574.05,0.00055616,120]
[321428263,1712182320402,-500.0,0.00055616,120]
[321428264,1712182320411,-704.16,0.00055616,120]
[321428265,1712182320421,-500.0,0.00055616,120]
[321428266,1712182320430,-500.0,0.00055616,120]
[321428267,1712182320440,-500.0,0.00055616,120]
[321428268,1712182320450,-519.13823168,0.00055616,120]
[321428269,1712182320460,-683.55,0.00055616,120]
[321428270,1712182320469,-500.0,0.00055616,120]
[321428271,1712182320478,-611.88,0.00055616,120]
[321428272,1712182320487,-500.0,0.00055616,120]
[321428273,1712182320497,-500.0,0.00055616,120]
[321428274,1712182320507,-500.0,0.00055616,2]
[321428275,1712182320517,-500.0,0.00055616,120]
[321428276,1712182320526,-500.0,0.00055616,120]
[321428277,1712182320536,-500.0,0.00055616,120]
[321428278,1712182320545,-500.0,0.00055616,120]
[321428279,1712182320555,-500.0,0.00055616,120]
[321428280,1712182320565,-313.36248746,0.00055616,120]
[321428281,1712182320575,-511.84722999,0.00055616,120]
[321428282,1712182320584,-523.21126917,0.00055616,120]
[321428283,1712182320594,-641.32,0.00055616,120]
[321428284,1712182320606,-519.63361208,0.00055616,120]
[321428285,1712182320615,-500.0,0.00055616,120]
[321428286,1712182320624,-500.0,0.00055616,120]
[321428287,1712182320634,-521.5309246,0.00055616,120]
[321428288,1712182320644,-500.0,0.00055616,120]
[321428289,1712182320654,-500.0,0.00055616,120]
[321428290,1712182320663,-500.0,0.00055616,120]
[321428291,1712182320673,-516.48658127,0.00055616,120]
[321428292,1712182320684,-941.5,0.00055616,120]
[321428293,1712182320694,-500.0,0.00055616,120]
[321428294,1712182320703,-500.0,0.00055616,120]
[321428295,1712182320714,-500.0,0.00055616,120]
[321428296,1712182320723,-500.0,0.00055616,120]
[321428297,1712182320732,-460.61600361,0.00055616,120]
[321428298,1712182320742,-500.0,0.00055616,120]
[321428299,1712182320751,-500.0,0.00055616,120]
[321428300,1712182320761,-531.76,0.00055616,120]
[321428301,1712182320770,-751.45,0.00055616,120]
[321428302,1712182320781,-554.97719514,0.00055616,120]
[321428303,1712182320791,-500.0,0.00055616,120]
[321428304,1712182320800,-452.50078377,0.00055616,120]
[321428305,1712182320810,-500.0,0.00055616,120]
[321428306,1712182320820,-500.0,0.00055616,120]
[321428307,1712182320830,-500.0,0.00055616,120]
[321428308,1712182320840,-265.0128792,0.00055616,120]
[321428309,1712182320850,-500.0,0.00055616,120]
[321428310,1712182320859,-500.0,0.00055616,120]
[321428311,1712182320869,-809.69,0.00055616,120]
[321428312,1712182320878,-658.04,0.00055616,120]
[321428313,1712182320888,-734.72,0.00055616,120]
[321428314,1712182320897,-516.77013533,0.00055616,120]
[321428315,1712182320907,-500.0,0.00055616,120]
[321428316,1712182320917,-854.0,0.00055616,120]
[321428317,1712182320927,-500.0,0.00055616,120]
[321428318,1712182320936,-500.0,0.00055616,120]
[321428319,1712182320946,-500.0,0.00055616,120]
[321428320,1712182320955,-500.0,0.00055616,120]
[321428321,1712182320965,-500.0,0.00055616,120]
[321428322,1712182320975,-500.0,0.00055616,120]
[321428323,1712182320984,-500.0,0.00055616,120]
[321428324,1712182320994,-675.44,0.00055616,120]
[321428325,1712182321004,-585.36,0.00055616,120]
[321428326,1712182321014,-580.52498896,0.00055616,120]
[321428327,1712182321023,-500.0,0.00055616,120]
[321428328,1712182321034,-500.0,0.00055616,120]
[321428329,1712182321043,-500.0,0.00055616,120]
[321428330,1712182321053,-500.0,0.00055616,120]
[321428331,1712182321063,-500.0,0.00055616,120]
[321428332,1712182321072,-512.68030067,0.00055616,120]
[321428333,1712182321082,-335.85185466,0.00055616,120]
[321428334,1712182321092,-500.0,0.00055616,120]
[321428335,1712182321103,-500.0,0.00055616,120]
[321428336,1712182321113,-500.0,0.00055616,120]
[321428337,1712182321122,-601.86921785,0.00055616,120]
[321428338,1712182321132,-500.0,0.00055616,120]
[321428339,1712182321142,-500.0,0.00055616,120]
[321428340,1712182321151,-600.0,0.00055616,2]
[321428341,1712182321161,-1657.99,0.00055616,30]
[321428342,1712182321170,-500.0,0.00055616,120]
[321428343,1712182321179,-835.03,0.00055616,120]
[321428344,1712182321188,-500.0,0.00055616,120]
[321428345,1712182321198,-500.0,0.00055616,120]
[321428346,1712182321207,-749.89,0.00055616,120]
[321428347,1712182321217,-500.0,0.00055616,120]
[321428348,1712182321227,-539.18,0.00055616,120]
[321428349,1712182321236,-500.0,0.00055616,120]
[321428350,1712182321245,-500.0,0.00055616,120]
[321428351,1712182321255,-1985.0,0.00055616,120]
[321428352,1712182321265,-500.0,0.00055616,120]
[321428353,1712182321274,-500.0,0.00055616,120]
[321428354,1712182321283,-520.88116642,0.00055616,120]
[321428355,1712182321293,-500.0,0.00055616,120]
[321428356,1712182321303,-1220.51,0.00055616,120]
[321428357,1712182321313,-500.0,0.00055616,2]
[321428358,1712182321323,-508.64,0.00055616,120]
[321428359,1712182321332,-511.24,0.00055616,120]
[321428360,1712182321342,-633.42,0.00055616,120]
[321428361,1712182321352,-704.66,0.00055616,120]
[321428362,1712182321362,-1220.19,0.00055616,120]
[321428363,1712182321371,-659.49,0.00055616,120]
[321428364,1712182321381,-1673.95,0.00055616,120]
[321428365,1712182321391,-561.78310381,0.00055616,120]
[321428366,1712182321401,-965.12,0.00055616,120]
[321428367,1712182321411,-935.91,0.00055616,120]
[321428368,1712182321421,-985.34,0.00055616,120]
[321428369,1712182321430,-625.0,0.00055616,120]
[321428370,1712182321440,-1009.55,0.00055616,120]
[321428371,1712182321450,-500.0,0.00055616,120]
[321428372,1712182321461,-705.27,0.00055616,120]
[321428373,1712182321471,-500.0,0.00055616,120]
[321428374,1712182321481,-500.0,0.00055616,120]
[321428375,1712182321491,-2000.0,0.00055616,30]
[321428376,1712182321502,-500.0,0.00055616,120]
[321428377,1712182321514,-1076.91,0.00055616,120]
[321428378,1712182321524,-1080.87,0.00055616,120]
[321428379,1712182321533,-500.0,0.00055616,120]
[321428380,1712182321543,-500.0,0.00055616,120]
[321428381,1712182321552,-500.0,0.00055616,120]
[321428382,1712182321561,-500.0,0.00055616,120]
[321428383,1712182321571,-245.75285777,0.00055616,120]
[321428384,1712182321581,-553.5,0.00055616,120]
[321428385,1712182321591,-1000.0,0.00055616,30]
[321428386,1712182321602,-884.75,0.00055616,120]
[321428387,1712182321613,-324.01607316,0.00055616,120]
[321428388,1712182321622,-500.0,0.00055616,120]
[321428389,1712182321632,-1092.2,0.00055616,120]
[321428390,1712182321643,-897.02,0.00055616,120]
[321428391,1712182321653,-500.0,0.00055616,120]
[321428392,1712182321663,-500.0,0.00055616,120]
[321428393,1712182321673,-500.0,0.00055616,120]